Workbook

Sheet Januar(1)
A1: Stundenerfassung
A2: Mitarbeiter: | H2: Jahr: | K2: 2026
A3: Vorname: | H3: Monat: | K3: Januar
D4: Urlaubstage | F4: =SUM(K2) -> 2026 | H4: Tage
E5: Vorjahr | G5: 0 | H5: Tage
A6: Arbeitszeit/Monat: | C6: =SUMPRODUCT((IF(B10:B40="Montag",1,0)+(IF(B10:B40="Dienstag",1,0)+(IF(B10:B40="Mittwoch",1,0)+(IF(B10:B40="Donnerstag",1,0)+(IF(B10:B40="Freitag",1,0)))))))*G6 -> 176 | D6: h | F6: U,K,F | G6: 8 | H6: h
A7: Üzeit Vormonat: | C7: 0.5 | D7: h | F7: Pause | G7: 0.5 | H7: h
C8: Arbeitszeit
C9: kommt | D9: geht | E9: Stunden | F9: keine Pause | G9: UKF | H9: U | I9: K | J9: F | K9: Bemerkungen:
A10: 2017-01-01 | B10: Donnerstag | E10: =SUM(G10) -> 8 | G10: =IF(O10=1,$G$6,"") -> 8 | J10: 1 | O10: =IF(SUM(H10:J10)>=1,1,"") -> 1
A11: 2017-01-02 | B11: Freitag | E11: =SUM(G11) -> 8 | G11: =IF(O11=1,$G$6,"") -> 8 | H11: 1 | O11: 1
A12: 2010-01-03 | B12: Samstag | E12: =SUBTOTAL(9,E7:E11) -> 16 | F12: =AVERAGEIF(E7:E11,">0") -> 8
A13: 2010-01-04 | B13: Sonntag | E13: =IF(D13=0,0,((TRUNC(D13))*60+100*(D13-TRUNC(D13))-((TRUNC(C13))*60+100*(C13-TRUNC(C13))))/60-$G$7)+F13 -> 0
A14: 2010-01-05 | B14: Montag | C14: 11.15 | D14: 17.45 | E14: 6
A15: 2010-01-06 | B15: Dienstag | C15: 10 | D15: 18 | E15: 7.5
A16: 2010-01-07 | B16: Mittwoch | C16: 8.45 | D16: 18.3 | E16: 9.25
A17: 2010-01-08 | B17: Donnerstag | C17: 8.45 | D17: 17.3 | E17: 8.25
A18: 2010-01-09 | B18: Freitag | C18: 9 | D18: 19 | E18: 9 | F18: -0.5
A19: 2010-01-10 | B19: Samstag | E19: =SUBTOTAL(9,E14:E18) -> 40 | F19: =AVERAGEIF(E14:E18,">0") -> 8
A20: 2010-01-11 | B20: Sonntag | E20: 0
A21: 2010-01-12 | B21: Montag | C21: 9 | D21: 17.3 | E21: 8
A22: 2010-01-13 | B22: Dienstag | C22: 9 | D22: 18 | E22: 8.5
A23: 2010-01-14 | B23: Mittwoch | C23: 8.45 | D23: 17.45 | E23: 8.5
A24: 2010-01-15 | B24: Donnerstag | C24: 8.45 | D24: 17.45 | E24: 8.5
A25: 2010-01-16 | B25: Freitag | C25: 8.45 | D25: 17.15 | E25: 8
A26: 2010-01-17 | B26: Samstag | E26: =SUBTOTAL(9,E21:E25) -> 41.5 | F26: =AVERAGEIF(E21:E25,">0") -> 8.3
A27: 2010-01-18 | B27: Sonntag | E27: 0
A28: 2010-01-19 | B28: Montag | C28: 8.3 | D28: 18 | E28: 8.5 | F28: -0.5
A29: 2010-01-20 | B29: Dienstag | C29: 8.45 | D29: 18 | E29: 8.75
A30: 2010-01-21 | B30: Mittwoch | C30: 9.3 | D30: 18 | E30: 8
A31: 2010-01-22 | B31: Donnerstag | C31: 8.45 | D31: 18 | E31: 8.75
A32: 2010-01-23 | B32: Freitag | C32: 8.45 | D32: 17 | E32: 7.75
A33: 2010-01-24 | B33: Samstag | E33: =SUBTOTAL(9,E28:E32) -> 41.75 | F33: =AVERAGEIF(E28:E32,">0") -> 8.35
A34: 2010-01-25 | B34: Sonntag | E34: 0
A35: 2010-01-26 | B35: Montag | C35: 8.45 | D35: 17.3 | E35: 8.25
A36: 2010-01-27 | B36: Dienstag | C36: 8.45 | D36: 17.45 | E36: 8.5
A37: 2010-01-28 | B37: Mittwoch | C37: 9.3 | D37: 18.3 | E37: 8.5
A38: 2010-01-29 | B38: Donnerstag | C38: 9 | D38: 18 | E38: 8.5
A39: 2010-01-30 | B39: Freitag | C39: 8.45 | D39: 17.3 | E39: 8.25
A40: 2010-01-31 | B40: Samstag | E40: =SUBTOTAL(9,E35:E39) -> 42 | F40: =AVERAGEIF(E35:E39,">0") -> 8.4
C41: Gearbeitete Std: | E41: =SUBTOTAL(9,E10:E40) -> 181.25 | F41: =SUM(F10:F40) -> 40.05 | N41: Urlaub | O41: =SUM(H10:H40) -> 1
C42: Gesamt Std: | E42: =SUM(E41+G41) -> 181.25 | N42: Krank | O42: =SUM(I10:I40) -> 0
D43: Überzeit Std: | F43: =IF(E42,E42-C6,0) -> 5.25 | J43: Std. | K43: Ü. Auszahlung
A44: Resturlaubstage Tage: | E44: Überzeitgesamt Std: | F44: =IF(C7+F43-H43,C7+F43-H43-H44,0) -> 5.75 | J44: Std. | K44: Ü. Abzug

Sheet Februar(2)
A1: Stundenerfassung
A2: Mitarbeiter: | H2: Jahr: | K2: =SUM('Januar(1)'!K2) -> 2026
A3: Vorname: | H3: Monat: | K3: Februar
D4: Urlaubstage | F4: =SUM(K2) -> 2026 | G4: =SUM('Januar(1)'!C44) -> 0 | H4: Tage
A6: Arbeitszeit/Monat: | C6: =SUMPRODUCT((IF(B10:B40="Montag",1,0)+(IF(B10:B40="Dienstag",1,0)+(IF(B10:B40="Mittwoch",1,0)+(IF(B10:B40="Donnerstag",1,0)+(IF(B10:B40="Freitag",1,0)))))))*G6 -> 160 | D6: h | F6: U,K,F | G6: 8 | H6: h
A7: Üzeit Vormonat: | C7: =SUM('Januar(1)'!F44) -> 5.75 | D7: h | F7: Pause | G7: 0.5 | H7: h
C8: Arbeitszeit
C9: kommt | D9: geht | E9: Stunden | F9: keine Pause | G9: UKF | H9: U | I9: K | J9: F | K9: Bemerkungen:
A10: 2010-02-01 | B10: Sonntag | E10: =IF(D10=0,0,((TRUNC(D10))*60+100*(D10-TRUNC(D10))-((TRUNC(C10))*60+100*(C10-TRUNC(C10))))/60-$G$7)-F10 -> 0 | G10: =IF(O10=1,$G$6,"") ->  | O10: =IF(SUM(H10:J10)>=1,1,"") -> 
A11: 2010-02-02 | B11: Montag | C11: 8.3 | D11: 17.45 | E11: =IF(D11=0,0,((TRUNC(D11))*60+100*(D11-TRUNC(D11))-((TRUNC(C11))*60+100*(C11-TRUNC(C11))))/60-$G$7)-F11 -> 8.75 | G11: =IF(O11=1,$G$6,"") -> 
A12: 2010-02-03 | B12: Dienstag | C12: 8.3 | D12: 17.15 | E12: 8.25
A13: 2010-02-04 | B13: Mittwoch | C13: 8.45 | D13: 17.3 | E13: 8.25
A14: 2010-02-05 | B14: Donnerstag | C14: 8.45 | D14: 18.45 | E14: 10 | F14: -0.5
A15: 2010-02-06 | B15: Freitag | C15: 9.45 | D15: 18 | E15: 7.75
A16: 2010-02-07 | B16: Samstag | E16: =SUBTOTAL(9,E11:E15) -> 43 | F16: =AVERAGEIF(E11:E15,">0") -> 8.6
A17: 2010-02-08 | B17: Sonntag | E17: 0
A18: 2010-02-09 | B18: Montag | C18: 9 | D18: 18 | E18: 8.5
A19: 2010-02-10 | B19: Dienstag | C19: 9 | D19: 17.3 | E19: 8
A20: 2010-02-11 | B20: Mittwoch | C20: 8.45 | D20: 17.15 | E20: 8
A21: 2010-02-12 | B21: Donnerstag | C21: 13 | D21: 18 | E21: 4.5
A22: 2010-02-13 | B22: Freitag | C22: 8.45 | D22: 18 | E22: 8.75
A23: 2010-02-14 | B23: Samstag | E23: =SUBTOTAL(9,E18:E22) -> 37.75 | F23: =AVERAGEIF(E18:E22,">0") -> 7.55
A24: 2010-02-15 | B24: Sonntag | E24: 0
A25: 2010-02-16 | B25: Montag | C25: 9 | D25: 18 | E25: 8.5
A26: 2010-02-17 | B26: Dienstag | C26: 8.45 | D26: 17.45 | E26: 8.5
A27: 2010-02-18 | B27: Mittwoch | C27: 8.45 | D27: 17.3 | E27: 8.25
A28: 2010-02-19 | B28: Donnerstag | C28: 9 | D28: 17.3 | E28: 8
A29: 2010-02-20 | B29: Freitag | C29: 9 | D29: 18 | E29: 8.5
A30: 2010-02-21 | B30: Samstag | E30: =SUBTOTAL(9,E25:E29) -> 41.75 | F30: =AVERAGEIF(E25:E29,">0") -> 8.35
A31: 2010-02-22 | B31: Sonntag | E31: 0
A32: 2010-02-23 | B32: Montag | C32: 9 | D32: 18 | E32: 8.5
A33: 2010-02-24 | B33: Dienstag | C33: 8.45 | D33: 18.3 | E33: 9.75 | F33: -0.5
A34: 2010-02-25 | B34: Mittwoch | C34: 10 | D34: 17.45 | E34: 7.25
A35: 2010-02-26 | B35: Donnerstag | C35: 9 | D35: 18.3 | E35: 9
A36: 2010-02-27 | B36: Freitag | C36: 9 | D36: 18 | E36: 8.5
A37: 2010-02-28 | B37: Samstag | E37: =SUBTOTAL(9,E32:E36) -> 43 | F37: =AVERAGEIF(E32:E36,">0") -> 8.6
G39: =IF(O39=1,G6,"") -> 
G40: =IF(O40=1,G6,"") -> 
C41: Gearbeitete Std: | E41: =SUBTOTAL(9,E10:E40) -> 165.5 | F41: =SUM(F10:F40) -> 32.1 | N41: Urlaub | O41: =SUM(H10:H40) -> 0
C42: Gesamt Std: | E42: =SUM(E41+G41) -> 165.5 | N42: Krank | O42: =SUM(I10:I40) -> 0
D43: Überzeit Std: | F43: =IF(E42,E42-C6,0) -> 5.5 | J43: Std. | K43: Ü. Auszahlung | N43: Krank ges. | O43: =SUM(O42+'Januar(1)'!O43) -> 0
A44: Resturlaubstage Tage: | C44: =SUM(G4+G5-O41) -> 0 | E44: Überzeitgesamt Std: | F44: =IF(C7+F43-H43,C7+F43-H43-H44,0) -> 11.25 | J44: Std. | K44: Ü. Abzug

Sheet März(3)
A1: Stundenerfassung
A2: Mitarbeiter: | H2: Jahr: | K2: =SUM('Februar(2)'!K2) -> 2026
A3: Vorname: | H3: Monat: | K3: März
D4: Urlaubstage | F4: =SUM(K2) -> 2026 | H4: Tage
A7: Üzeit Vormonat: | D7: h | F7: Pause | G7: 0.5 | H7: h
C8: Arbeitszeit
C9: kommt | D9: geht | E9: Stunden | F9: keine Pause | G9: UKF | H9: U | I9: K | J9: F | K9: Bemerkungen:
A10: 2010-03-01 | B10: Sonntag | E10: =IF(D10=0,0,((TRUNC(D10))*60+100*(D10-TRUNC(D10))-((TRUNC(C10))*60+100*(C10-TRUNC(C10))))/60-$G$7)+F10 -> 0 | G10: =IF(N10=1,$G$6,"") ->  | N10: =IF(SUM(H10:J10)>=1,1,"") -> 
A11: 2010-03-02 | B11: Montag | C11: 9.15 | D11: 17.3 | E11: =IF(D11=0,0,((TRUNC(D11))*60+100*(D11-TRUNC(D11))-((TRUNC(C11))*60+100*(C11-TRUNC(C11))))/60-$G$7)+F11 -> 7.75 | G11: =IF(N11=1,$G$6,"") -> 
A12: 2010-03-03 | B12: Dienstag | C12: 9 | D12: 18.3 | E12: 8.5 | F12: -0.5
A13: 2010-03-04 | B13: Mittwoch | C13: 9.15 | D13: 18 | E13: 8.25
A14: 2010-03-05 | B14: Donnerstag | C14: 9.15 | D14: 18.15 | E14: 8.5
A15: 2010-03-06 | B15: Freitag | C15: 9 | D15: 18.15 | E15: 8.75
A16: 2010-03-07 | B16: Samstag | E16: =SUBTOTAL(9,E11:E15) -> 41.75 | F16: =AVERAGEIF(E11:E15,">0") -> 8.35
A17: 2010-03-08 | B17: Sonntag | E17: 0
A18: 2010-03-09 | B18: Montag | C18: 9 | D18: 18.3 | E18: 8.5 | F18: -0.5
A19: 2010-03-10 | B19: Dienstag | C19: 9 | D19: 18 | E19: 8.5
A20: 2010-03-11 | B20: Mittwoch | C20: 9 | D20: 17.3 | E20: 8
A21: 2010-03-12 | B21: Donnerstag | C21: 9 | D21: 18.15 | E21: 8.75
A22: 2010-03-13 | B22: Freitag | C22: 9 | D22: 18.15 | E22: 8.75
A23: 2010-03-14 | B23: Samstag | E23: =SUBTOTAL(9,E18:E22) -> 42.5 | F23: =AVERAGEIF(E18:E22,">0") -> 8.5
A24: 2010-03-15 | B24: Sonntag | E24: 0
A25: 2010-03-16 | B25: Montag | C25: 8.45 | D25: 18.3 | E25: 9.25
A26: 2010-03-17 | B26: Dienstag | E26: 0
A27: 2010-03-18 | B27: Mittwoch | E27: 0
A28: 2010-03-19 | B28: Donnerstag | E28: 0
A29: 2010-03-20 | B29: Freitag | C29: 11 | D29: 18.15 | E29: 6.75
A30: 2010-03-21 | B30: Samstag | E30: =SUBTOTAL(9,E25:E29) -> 16 | F30: =AVERAGEIF(E25:E29,">0") -> 8
A31: 2010-03-22 | B31: Sonntag | E31: 0
A32: 2010-03-23 | B32: Montag | C32: 9 | D32: 15.3 | E32: 6
A33: 2010-03-24 | B33: Dienstag | E33: 0
A34: 2010-03-25 | B34: Mittwoch | E34: 0
A35: 2010-03-26 | B35: Donnerstag | C35: 12 | D35: 18.15 | E35: 5.75
A36: 2010-03-27 | B36: Freitag | C36: 14 | D36: 18.15 | E36: 3.75
A37: 2010-03-28 | B37: Samstag | E37: =SUBTOTAL(9,E32:E36) -> 15.5 | F37: =AVERAGEIF(E32:E36,">0") -> 5.166666667
A38: 2010-03-29 | B38: Sonntag | E38: 0
A39: 2010-03-30 | B39: Montag | C39: 9.3 | D39: 18.45 | E39: 8.75
A40: 2010-03-31 | B40: Dienstag | E40: 0
C41: Gearbeitete Std: | E41: =SUBTOTAL(9,E10:E40) -> 124.5 | F41: =SUBTOTAL(9,F11:F15,F18:F22,F25:F29,F32:F36,F39:F40) -> -1 | G41: =SUM(G10:G40) -> 0
C42: Gesamt Std: | E42: =SUM(E41+G41) -> 124.5
A44: Resturlaubstage Tage: | E44: =AVERAGE(E16,E23,E30,E37) -> 28.9375 | F44: Mittelwert der wöchentlichen Arbeits-Std.

Sheet April(4)
A1: Stundenerfassung
A2: Mitarbeiter: | C2: =HYPERLINK('März(3)'!C2:D2) ->  | H2: Jahr: | K2: =SUM('März(3)'!K2) -> 2026
A3: Vorname: | C3: =HYPERLINK('März(3)'!C3:D3) ->  | H3: Monat: | K3: April
D4: Urlaubstage | F4: =SUM(K2) -> 2026 | G4: =SUM('März(3)'!C44) -> 0 | H4: Tage
A7: Üzeit Vormonat: | C7: =SUM('März(3)'!F44) -> 0 | D7: h | F7: Pause | G7: 0.5 | H7: h
C8: Arbeitszeit
C9: kommt | D9: geht | E9: Stunden | F9: keine Pause | G9: UKF | H9: U | I9: K | J9: F | K9: Bemerkungen:
A10: 2010-04-01 | B10: Mittwoch | E10: =IF(D10=0,0,((TRUNC(D10))*60+100*(D10-TRUNC(D10))-((TRUNC(C10))*60+100*(C10-TRUNC(C10))))/60-$G$7)+F10 -> 0 | G10: =IF(N10=1,$G$6,"") -> 
A11: 2010-04-02 | B11: Donnerstag | E11: =IF(D11=0,0,((TRUNC(D11))*60+100*(D11-TRUNC(D11))-((TRUNC(C11))*60+100*(C11-TRUNC(C11))))/60-$G$7)+F11 -> 0 | G11: =IF(N11=1,$G$6,"") -> 
A12: 2010-04-03 | B12: Freitag | E12: =SUM(G12) -> 8 | G12: =SUM('MW Stunden'!C16) -> 8 | J12: 1
A13: 2010-04-04 | B13: Samstag | E13: =SUBTOTAL(9,E10:E12,'März(3)'!E39) -> 16.75
A14: 2010-04-05 | B14: Sonntag | E14: 0
A15: 2010-04-06 | B15: Montag | E15: =SUM(G15) -> 7.763888889 | G15: =SUM('MW Stunden'!C17) -> 7.763888889 | J15: 1
A16: 2010-04-07 | B16: Dienstag | E16: 0
A17: 2010-04-08 | B17: Mittwoch | E17: 0
A18: 2010-04-09 | B18: Donnerstag | E18: 0
A19: 2010-04-10 | B19: Freitag | E19: 0 | N19: =IF(SUM(H19:J19)>=1,1,"") -> 
A20: 2010-04-11 | B20: Samstag | E20: =SUBTOTAL(9,E15:E19) -> 7.763888889 | F20: =AVERAGEIF(E15:E19,">0") -> 7.763888889 | N20: =IF(SUM(H20:J20)>=1,1,"") -> 
A21: 2010-04-12 | B21: Sonntag | E21: 0 | N21: =IF(SUM(H21:J21)>=1,1,"") -> 
A22: 2010-04-13 | B22: Montag | E22: 0 | N22: =IF(SUM(H22:J22)>=1,1,"") -> 
A23: 2010-04-14 | B23: Dienstag | E23: 0 | N23: =IF(SUM(H23:J23)>=1,1,"") -> 
A24: 2010-04-15 | B24: Mittwoch | E24: 0 | N24: =IF(SUM(H24:J24)>=1,1,"") -> 
A25: 2010-04-16 | B25: Donnerstag | E25: 0 | N25: =IF(SUM(H25:J25)>=1,1,"") -> 
A26: 2010-04-17 | B26: Freitag | E26: 0 | N26: =IF(SUM(H26:J26)>=1,1,"") -> 
A27: 2010-04-18 | B27: Samstag | E27: =SUBTOTAL(9,E22:E26) -> 0 | F27: =AVERAGEIF(E22:E26,">0") ->  | N27: =IF(SUM(H27:J27)>=1,1,"") -> 
A28: 2010-04-19 | B28: Sonntag | E28: 0 | N28: =IF(SUM(H28:J28)>=1,1,"") -> 
A29: 2010-04-20 | B29: Montag | E29: 0 | N29: =IF(SUM(H29:J29)>=1,1,"") -> 
A30: 2010-04-21 | B30: Dienstag | E30: 0 | N30: =IF(SUM(H30:J30)>=1,1,"") -> 
A31: 2010-04-22 | B31: Mittwoch | E31: 0 | N31: =IF(SUM(H31:J31)>=1,1,"") -> 
A32: 2010-04-23 | B32: Donnerstag | E32: 0 | N32: =IF(SUM(H32:J32)>=1,1,"") -> 
A33: 2010-04-24 | B33: Freitag | E33: 0 | N33: =IF(SUM(H33:J33)>=1,1,"") -> 
A34: 2010-04-25 | B34: Samstag | E34: =SUBTOTAL(9,E29:E33) -> 0 | F34: =AVERAGEIF(E29:E33,">0") ->  | N34: =IF(SUM(H34:J34)>=1,1,"") -> 
A35: 2010-04-26 | B35: Sonntag | E35: 0 | N35: =IF(SUM(H35:J35)>=1,1,"") -> 
A36: 2010-04-27 | B36: Montag | E36: 0 | N36: =IF(SUM(H36:J36)>=1,1,"") -> 
A37: 2010-04-28 | B37: Dienstag | E37: 0 | N37: =IF(SUM(H37:J37)>=1,1,"") -> 
A38: 2010-04-29 | B38: Mittwoch | E38: 0 | N38: =IF(SUM(H38:J38)>=1,1,"") -> 
A39: 2010-04-30 | B39: Donnerstag | E39: 0 | N39: =IF(SUM(H39:J39)>=1,1,"") -> 
G40: =IF(N40=1,G6,"") ->  | N40: =IF(SUM(H40:J40)>=1,1,"") -> 
C41: Gearbeitete Std: | E41: =SUBTOTAL(9,E10:E40) -> 15.76388889 | F41: =SUBTOTAL(9,F10:F12,F15:F19,F22:F26,F29:F33,F36:F39) -> 0 | M41: Urlaub | N41: =SUM(H10:H40) -> 0
M42: Krank | N42: =SUM(I10:I40) -> 0
M43: Krank ges. | N43: =SUM(N42+'März(3)'!N43) -> 0
A44: Resturlaubstage Tage: | C44: =SUM(G4+G5-N41) -> 0 | E44: =AVERAGE(E16,E23,E30,E37) -> 0 | F44: Mittelwert der wöchentlichen Arbeits-Std.

Sheet MW Stunden
A1: Ermittlung Mittelwert der Stunden
B3: Mittelwert | C3: Mittelwert 12 Wochen
A4: KW 1 | B4: 8
A5: KW 2 | B5: 8
A6: KW 3 | B6: 8
A7: KW 4 | B7: 8
A8: KW 5 | B8: 8
A9: KW 6 | B9: 8
A10: KW 7 | B10: 8
A11: KW 8 | B11: 8
A12: KW 9 | B12: 8
A13: KW 10 | B13: 8
A14: KW 11 | B14: 8
A15: KW 12 | B15: =SUM('März(3)'!F30) -> 8
A16: KW 13 | B16: =SUM('März(3)'!F37) -> 5.166666667 | C16: =AVERAGE(B4:B15) -> 8
A17: KW 14 | B17: =SUM('April(4)'!F13) -> 0 | C17: =AVERAGE(B5:B16) -> 7.763888889
A18: KW 15 | B18: =SUM('April(4)'!F20) -> 7.763888889 | C18: =AVERAGE(B6:B17) -> 7.097222222
A19: KW 16 | B19: =SUM('April(4)'!F27) ->  | C19: =AVERAGE(B7:B18) -> 7.077546296
A20: KW 17 | B20: =SUM('April(4)'!F34) -> 
A21: KW 18 | B21: =SUM(#REF!) -> 
A22: KW 19 | B22: =SUM(#REF!) -> 
A23: KW 20 | B23: =SUM(#REF!) -> 
A24: KW 21 | B24: =SUM(#REF!) -> 
A25: KW 22 | B25: =SUM(#REF!) -> 
A26: KW 23 | B26: =SUM(#REF!) -> 
A27: KW 24 | B27: =SUM(#REF!) -> 
A28: KW 25 | B28: =SUM(#REF!) -> 
A29: KW 26 | B29: =SUM(#REF!) -> 
A30: KW 27 | B30: =SUM(#REF!) -> 
A31: KW 28 | B31: =SUM(#REF!) -> 
A32: KW 29 | B32: =SUM(#REF!) -> 
A33: KW 30 | B33: =SUM(#REF!) -> 
A34: KW 31 | B34: =SUM(#REF!) -> 
A35: KW 32 | B35: =SUM(#REF!) -> 
A36: KW 33 | B36: =SUM(#REF!) -> 
A37: KW 34 | B37: =SUM(#REF!) -> 
A38: KW 35 | B38: =SUM(#REF!) -> 
A39: KW 36 | B39: =SUM(#REF!) -> 
A40: KW 37 | B40: =SUM(#REF!) -> 
A41: KW 38 | B41: =SUM(#REF!) -> 
A42: KW 39 | B42: =SUM(#REF!) -> 
A43: KW 40 | B43: =SUM(#REF!) -> 
A44: KW 41 | B44: =SUM(#REF!) -> 
A45: KW 42 | B45: =SUM(#REF!) -> 
A46: KW 43 | B46: =SUM(#REF!) -> 
A47: KW 44 | B47: =SUM(#REF!) -> 
A48: KW 45 | B48: =SUM(#REF!) -> 
A49: KW 46 | B49: =SUM(#REF!) -> 
A50: KW 47 | B50: =SUM(#REF!) -> 
A51: KW 48 | B51: =SUM(#REF!) -> 
A52: KW 49 | B52: =SUM(#REF!) -> 
A53: KW 50 | B53: =SUM(#REF!) -> 
A54: KW 51 | B54: =SUM(#REF!) -> 
A55: KW 52 | B55: =SUM(#REF!) -> 
A56: KW 53
